[Event "SVK Extraliga 2019-20"]
[Site "Slovakia"]
[Date "2020.01.18"]
[Round "5.6"]
[White "Druska, Juraj"]
[Black "Vojtek, Vladimir"]
[Result "1/2-1/2"]
[ECO "B53"]
[WhiteElo "2501"]
[BlackElo "2263"]
[Annotator "ChessBase"]
[PlyCount "90"]
[EventDate "2019.10.19"]
[EventType "team-tourn"]
[EventCountry "SVK"]
[SourceTitle "playchess.com"]
[Source "ChessBase"]
[SourceQuality "1"]
[WhiteTeam "Zilina"]
[BlackTeam "Dubnica"]
[TimeControl "40/5400+30:1800+30"]

1. e4 {[%emt 0:00:30]} c5 {[%emt 0:00:00]} 2. Nf3 {[%emt 0:00:18]} d6 {[%emt 0:00:00]} 3. d4 {[%emt 0:00:08]} cxd4 {[%emt 0:00:00]} 4. Qxd4 {[%emt 0:00:05]} Nc6 {[%emt 0:00:01]} 5. Bb5 {[%emt 0:00:07]} Bd7 {[%emt 0:00:05]} 6. Qd3 {[%emt 0:00:06]} Nf6 {[%emt 0:04:18]} 7. c4 {[%emt 0:00:19]} g6 {[%emt 0:03:19]} 8. Nc3 {[%emt 0:00:19]} Bg7 {[%emt 0:00:08]} 9. O-O {[%emt 0:00:07]} O-O {[%emt 0:00:04]} 10. h3 {[%emt 0:00:05]} Rc8 {[%emt 0:06:47]} 11. Be3 {[%emt 0:00:48]} a6 {[%emt 0:01:45]} 12. Bxc6 {[%emt 0:00:11]} Bxc6 {[%emt 0:00:55]} 13. Nd4 {[%emt 0:00:10]} Nd7 {[%emt 0:00:48]} 14. Rac1 {[%emt 0:00:09]} Nc5 {[%emt 0:06:21]} 15. Qb1 {[%emt 0:00:11]} Bd7 {[%emt 0:05:50]} 16. Rfd1 {[%emt 0:03:27]} Qe8 {[%emt 0:06:28]} 17. Nd5 {[%emt 0:27:24]} Ne6 {[%emt 0:04:52]} 18. Nxe6 {[%emt 0:15:30]} Bxe6 {[%emt 0:00:54]} 19. b4 {[%emt 0:00:27]} f5 {[%emt 0:05:00]} 20. Bd4 {[%emt 0:22:49]} Bxd4 {[%emt 0:08:11]} 21. Rxd4 {[%emt 0:00:05]} Qf7 {[%emt 0:00:52]} 22. exf5 {[%emt 0:00:53]} Bxd5 {[%emt 0:02:55]} 23. Rxd5 {[%emt 0:02:35]} Rxc4 {[%emt 0:02:45]} 24. Rxc4 {[%emt 0:01:50]} Qxd5 {[%emt 0:00:06]} 25. Rc7 {[%emt 0:00:34]} Qxf5 {[%emt 0:10:35]} 26. Qxf5 {[%emt 0:12:34]} Rxf5 {[%emt 0:00:28]} 27. Rxe7 {[%emt 0:00:07]} Rb5 {[%emt 0:01:20]} 28. a3 {[%emt 0:00:45]} a5 {[%emt 0:02:19]} 29. bxa5 {[%emt 0:01:59]} Rxa5 {[%emt 0:00:10]} 30. Rxb7 {[%emt 0:00:06]} Rxa3 {[%emt 0:00:03]} 31. Rd7 {[%emt 0:00:06]} Rd3 {[%emt 0:02:50]} 32. Kf1 {[%emt 0:00:29]} Rd5 {[%emt 0:10:54]} 33. Ke2 {[%emt 0:00:48]} Re5+ {[%emt 0:02:54]} 34. Kd3 {[%emt 0:01:54]} Rd5+ {[%emt 0:01:01]} 35. Ke2 {[%emt 0:04:13]} Re5+ {[%emt 0:00:21]} 36. Kf1 {[%emt 0:00:05]} Rd5 {[%emt 0:00:05]} 37. g3 {[%emt 0:00:21]} g5 {[%emt 0:05:12]} 38. Ke2 {[%emt 0:02:15]} Re5+ {[%emt 0:05:23]} 39. Kf3 {[%emt 0:00:13]} Rf5+ {[%emt 0:00:12]} 40. Kg4 {[%emt 0:01:48]} Rxf2 {[%emt 0:00:22]} 41. Rxd6 {[%emt 0:03:25]} Rg2 {[%emt 0:10:34]} 42. Rd3 {[%emt 0:03:10]} Rh2 {[%emt 0:02:53]} 43. Rd5 {[%emt 0:04:01]} h6 {[%emt 0:01:58]} 44. Rd7 {[%emt 0:00:10]} Rh1 {[%emt 0:01:22]} 45. Ra7 {[%emt 0:00:07]} Rh2 {[%emt 0:00:53]} 1/2-1/2

[Event "SVK Extraliga 2019-20"]
[Site "Slovakia"]
[Date "2020.01.18"]
[Round "5.6"]
[White "Vymazal, Bronislav"]
[Black "Kostolansky, Sebastian Lukas"]
[Result "1-0"]
[ECO "B07"]
[WhiteElo "2378"]
[BlackElo "2408"]
[Annotator "ChessBase"]
[PlyCount "85"]
[EventDate "2019.10.19"]
[EventType "team-tourn"]
[EventCountry "SVK"]
[SourceTitle "playchess.com"]
[Source "ChessBase"]
[SourceQuality "1"]
[WhiteTeam "Podhajska"]
[BlackTeam "Slovan"]
[TimeControl "40/5400+30:1800+30"]

1. e4 {[%emt 0:00:00]} g6 {[%emt 0:00:23]} 2. d4 {[%emt 0:00:00]} Bg7 {[%emt 0:00:06]} 3. Nc3 {[%emt 0:00:00]} d6 {[%emt 0:00:50]} 4. Be3 {[%emt 0:00:23]} Nf6 {[%emt 0:01:42]} 5. Qd2 {[%emt 0:00:30]} O-O {[%emt 0:00:43]} 6. f3 {[%emt 0:08:20]} c6 {[%emt 0:01:56]} 7. g4 {[%emt 0:08:38]} h5 {[%emt 0:08:15]} 8. h3 {[%emt 0:05:46]} b5 {[%emt 0:07:47]} 9. Nge2 {[%emt 0:06:00]} Nbd7 {[%emt 0:10:10]} 10. Bg5 {[%emt 0:13:34]} b4 {[%emt 0:12:09]} 11. Nd1 {[%emt 0:01:27]} c5 {[%emt 0:06:50]} 12. Ne3 {[%emt 0:05:12]} Bb7 {[%emt 0:30:08]} 13. Bg2 {[%emt 0:11:51]} cxd4 {[%emt 0:04:07]} 14. Nxd4 {[%emt 0:01:00]} Nh7 {[%emt 0:01:46]} 15. h4 {[%emt 0:07:42]} Nxg5 {[%emt 0:07:23]} 16. hxg5 {[%emt 0:00:10]} h4 {[%emt 0:01:00]} 17. Nd5 {[%emt 0:18:40]} e6 {[%emt 0:01:17]} 18. Nxb4 {[%emt 0:00:14]} Qb6 {[%emt 0:01:19]} 19. c3 {[%emt 0:00:21]} Ne5 {[%emt 0:01:01]} 20. O-O-O {[%emt 0:03:31]} a5 {[%emt 0:00:36]} 21. Nd3 {[%emt 0:00:07]} Nxd3+ {[%emt 0:00:30]} 22. Qxd3 {[%emt 0:00:06]} Ba6 {[%emt 0:00:31]} 23. Qd2 {[%emt 0:00:13]} Rab8 {[%emt 0:00:17]} 24. Bf1 {[%emt 0:02:39]} Rfc8 {[%emt 0:00:09]} 25. Kb1 {[%emt 0:01:53]} Bb7 {[%emt 0:00:39]} 26. Rh2 {[%emt 0:02:29]} d5 {[%emt 0:00:21]} 27. exd5 {[%emt 0:00:44]} Bxd5 {[%emt 0:00:06]} 28. f4 {[%emt 0:00:47]} Qc5 {[%emt 0:01:22]} 29. Ka1 {[%emt 0:00:32]} a4 {[%emt 0:00:26]} 30. Rh3 {[%emt 0:01:07]} a3 {[%emt 0:00:31]} 31. b3 {[%emt 0:00:07]} e5 {[%emt 0:00:35]} 32. Ne2 {[%emt 0:01:12]} Be6 {[%emt 0:00:32]} 33. f5 {[%emt 0:00:19]} gxf5 {[%emt 0:00:09]} 34. gxf5 {[%emt 0:00:05]} Bxf5 {[%emt 0:00:07]} 35. Rxh4 {[%emt 0:00:09]} Qf2 {[%emt 0:01:10]} 36. Qe1 {[%emt 0:00:51]} Rd8 {[%emt 0:00:34]} 37. Rc1 {[%emt 0:00:40]} Qe3 {[%emt 0:00:31]} 38. Ng3 {[%emt 0:00:31]} Qxe1 {[%emt 0:00:29]} 39. Rxe1 {[%emt 0:00:04]} e4 40. Rc1 Bxc3+ 41. Kb1 Bg6 42. Rxc3 Bf5 43. Rc1 1-0

[Event "SVK Extraliga 2019-20"]
[Site "Slovakia"]
[Date "2020.01.18"]
[Round "5.6"]
[White "Meszaros, Michal"]
[Black "Havalda, Samuel"]
[Result "1-0"]
[ECO "C79"]
[WhiteElo "2368"]
[BlackElo "1533"]
[Annotator "ChessBase"]
[PlyCount "93"]
[EventDate "2019.10.19"]
[EventType "team-tourn"]
[EventCountry "SVK"]
[SourceTitle "playchess.com"]
[Source "ChessBase"]
[SourceQuality "1"]
[WhiteTeam "Streda"]
[BlackTeam "Bratislava"]
[TimeControl "40/5400+30:1800+30"]

1. e4 {[%emt 0:00:00]} e5 {[%emt 0:00:00]} 2. Nf3 {[%emt 0:00:07]} Nc6 {[%emt 0:00:02]} 3. Bb5 {[%emt 0:00:19]} a6 {[%emt 0:00:08]} 4. Ba4 {[%emt 0:00:07]} Nf6 {[%emt 0:00:28]} 5. O-O {[%emt 0:00:12]} d6 {[%emt 0:00:22]} 6. d3 {[%emt 0:04:34]} b5 {[%emt 0:00:14]} 7. Bb3 {[%emt 0:00:01]} Be7 {[%emt 0:00:08]} 8. a4 {[%emt 0:01:49]} Na5 {[%emt 0:02:52]} 9. Ba2 {[%emt 0:01:24]} O-O {[%emt 0:01:54]} 10. axb5 {[%emt 0:01:47]} axb5 {[%emt 0:00:22]} 11. b4 {[%emt 0:00:08]} Nc6 {[%emt 0:01:17]} 12. Bxf7+ {[%emt 0:00:10]} Rxf7 {[%emt 0:00:56]} 13. Rxa8 {[%emt 0:00:09]} Nxb4 {[%emt 0:01:02]} 14. Ng5 {[%emt 0:00:20]} Rf8 {[%emt 0:02:56]} 15. Ne6 {[%emt 0:00:08]} Qd7 {[%emt 0:04:01]} 16. Nxf8 {[%emt 0:00:11]} Bxf8 {[%emt 0:00:08]} 17. c3 {[%emt 0:07:12]} Nc6 {[%emt 0:01:58]} 18. Qb3+ {[%emt 0:00:39]} Qe6 {[%emt 0:01:36]} 19. Qxb5 {[%emt 0:01:55]} Bd7 {[%emt 0:01:01]} 20. Qb7 {[%emt 0:01:20]} Ne8 {[%emt 0:02:54]} 21. f4 {[%emt 0:04:12]} d5 {[%emt 0:01:59]} 22. Qb3 {[%emt 0:06:44]} Bc5+ {[%emt 0:05:26]} 23. Kh1 {[%emt 0:00:29]} exf4 {[%emt 0:02:51]} 24. exd5 {[%emt 0:02:33]} Qe2 {[%emt 0:00:41]} 25. dxc6+ {[%emt 0:00:43]} Kh8 {[%emt 0:01:05]} 26. Qd1 {[%emt 0:00:22]} Qxd1 {[%emt 0:01:24]} 27. Rxd1 {[%emt 0:00:11]} Bxc6 {[%emt 0:00:06]} 28. Rxe8+ {[%emt 0:00:27]} Bxe8 {[%emt 0:00:08]} 29. Bxf4 {[%emt 0:00:08]} Bh5 {[%emt 0:00:17]} 30. Re1 {[%emt 0:00:27]} Bf2 {[%emt 0:00:38]} 31. Rf1 {[%emt 0:00:29]} Bc5 {[%emt 0:00:57]} 32. d4 {[%emt 0:00:17]} Bf8 {[%emt 0:00:19]} 33. Bxc7 {[%emt 0:00:07]} Kg8 {[%emt 0:00:57]} 34. Nd2 {[%emt 0:00:18]} Be2 {[%emt 0:00:41]} 35. Rf2 {[%emt 0:00:20]} Bd3 {[%emt 0:01:46]} 36. Nf3 {[%emt 0:00:17]} Bc4 {[%emt 0:02:36]} 37. Ne5 {[%emt 0:00:02]} Be6 {[%emt 0:00:11]} 38. c4 {[%emt 0:00:08]} h6 {[%emt 0:01:08]} 39. d5 {[%emt 0:00:03]} Bxd5 {[%emt 0:01:01]} 40. cxd5 {[%emt 0:00:01]} Be7 {[%emt 0:00:24]} 41. d6 {[%emt 0:30:02]} Bg5 {[%emt 0:31:20]} 42. d7 {[%emt 0:00:03]} Bh4 {[%emt 0:00:30]} 43. g3 {[%emt 0:00:02]} Bg5 {[%emt 0:00:10]} 44. h4 {[%emt 0:00:11]} Be7 {[%emt 0:00:08]} 45. Rf7 {[%emt 0:00:05]} Bf6 {[%emt 0:00:29]} 46. Rxf6 {[%emt 0:00:01]} gxf6 {[%emt 0:00:30]} 47. d8=Q+ {[%emt 0:00:01]} 1-0

[Event "SVK Extraliga 2019-20"]
[Site "Slovakia"]
[Date "2020.01.18"]
[Round "5.6"]
[White "Lisko, Frantisek"]
[Black "Maslik, Miroslav"]
[Result "0-1"]
[ECO "A41"]
[WhiteElo "2256"]
[BlackElo "2358"]
[Annotator "ChessBase"]
[PlyCount "106"]
[EventDate "2019.10.19"]
[EventType "team-tourn"]
[EventCountry "SVK"]
[SourceTitle "playchess.com"]
[Source "ChessBase"]
[SourceQuality "1"]
[WhiteTeam "Dunajov"]
[BlackTeam "Modra "]
[WhiteTeamCountry "SVK"]
[BlackTeamCountry "SVK"]
[TimeControl "40/5400+30:1800+30"]

1. d4 {[%emt 0:00:00]} d6 {[%emt 0:00:08]} 2. c4 {[%emt 0:00:00]} e5 {[%emt 0:00:13]} 3. d5 {[%emt 0:00:01]} f5 {[%emt 0:00:12]} 4. e4 {[%emt 0:00:17]} fxe4 {[%emt 0:00:14]} 5. Nc3 {[%emt 0:00:20]} Nf6 {[%emt 0:00:02]} 6. Nge2 {[%emt 0:03:02]} Bf5 {[%emt 0:05:50]} 7. Ng3 {[%emt 0:03:03]} Bg6 {[%emt 0:00:07]} 8. Qe2 {[%emt 0:22:32]} c6 {[%emt 0:17:09]} 9. Ngxe4 {[%emt 0:03:22]} Nxe4 {[%emt 0:04:22]} 10. Nxe4 {[%emt 0:00:15]} cxd5 {[%emt 0:00:11]} 11. cxd5 {[%emt 0:00:13]} Qa5+ {[%emt 0:00:41]} 12. Nc3 {[%emt 0:00:42]} Nd7 {[%emt 0:13:08]} 13. Qg4 {[%emt 0:10:45]} a6 {[%emt 0:04:38]} 14. Be2 {[%emt 0:07:40]} Be7 {[%emt 0:01:14]} 15. Bg5 {[%emt 0:05:29]} Bxg5 {[%emt 0:06:11]} 16. Qxg5 {[%emt 0:00:30]} Nf6 {[%emt 0:01:04]} 17. O-O {[%emt 0:11:35]} O-O {[%emt 0:00:25]} 18. Rad1 {[%emt 0:07:41]} Qb6 {[%emt 0:06:34]} 19. Rd2 {[%emt 0:02:10]} Rac8 {[%emt 0:02:01]} 20. Qe3 {[%emt 0:03:38]} Qxe3 {[%emt 0:03:19]} 21. fxe3 {[%emt 0:00:11]} b5 {[%emt 0:01:29]} 22. a3 {[%emt 0:00:17]} Rc5 {[%emt 0:01:15]} 23. Rfd1 {[%emt 0:08:16]} Rfc8 {[%emt 0:01:55]} 24. h3 {[%emt 0:01:17]} h5 {[%emt 0:04:32]} 25. Kh2 {[%emt 0:02:59]} Kf7 {[%emt 0:05:45]} 26. Kg1 {[%emt 0:02:04]} Ke7 {[%emt 0:00:13]} 27. Kh2 {[%emt 0:00:12]} R8c7 {[%emt 0:00:49]} 28. Kg1 {[%emt 0:00:09]} h4 {[%emt 0:03:40]} 29. Kh2 {[%emt 0:01:14]} Bf5 {[%emt 0:04:02]} 30. Kg1 {[%emt 0:00:22]} g6 {[%emt 0:01:45]} 31. Kh2 {[%emt 0:00:22]} Rxc3 {[%emt 0:05:14]} 32. bxc3 {[%emt 0:00:08]} Rxc3 {[%emt 0:00:02]} 33. a4 {[%emt 0:01:26]} bxa4 {[%emt 0:00:50]} 34. Bxa6 {[%emt 0:01:07]} Rxe3 {[%emt 0:00:43]} 35. Rb2 {[%emt 0:02:09]} Rb3 {[%emt 0:00:22]} 36. Ra2 {[%emt 0:00:54]} Ne4 {[%emt 0:02:40]} 37. Rc1 {[%emt 0:01:21]} Nc5 {[%emt 0:03:02]} 38. Bc4 {[%emt 0:00:23]} Rb4 {[%emt 0:00:33]} 39. Ra3 {[%emt 0:00:53]} e4 {[%emt 0:01:04]} 40. Kg1 {[%emt 0:00:25]} Kf6 {[%emt 0:00:25]} 41. Ba2 {[%emt 0:06:42]} Ke5 {[%emt 0:02:16]} 42. Rc4 {[%emt 0:00:41]} Rb2 {[%emt 0:03:46]} 43. Rcc3 {[%emt 0:03:10]} Rd2 {[%emt 0:01:56]} 44. Rc4 {[%emt 0:07:15]} Rxd5 {[%emt 0:01:48]} 45. Rb4 {[%emt 0:03:08]} Rd1+ {[%emt 0:00:22]} 46. Kh2 {[%emt 0:00:11]} Rd3 {[%emt 0:07:12]} 47. Rxd3 {[%emt 0:01:13]} exd3 {[%emt 0:00:02]} 48. Rb1 {[%emt 0:02:05]} Kd4 {[%emt 0:00:17]} 49. Kg1 {[%emt 0:00:35]} d2 {[%emt 0:00:26]} 50. Rd1 {[%emt 0:00:27]} Ke3 {[%emt 0:00:31]} 51. Bd5 {[%emt 0:00:46]} Bc2 {[%emt 0:00:45]} 52. Bf3 {[%emt 0:00:18]} Bxd1 {[%emt 0:00:14]} 53. Bxd1 {[%emt 0:00:06]} a3 {[%emt 0:00:04]} 0-1

[Event "SVK Extraliga 2019-20"]
[Site "Slovakia"]
[Date "2020.01.18"]
[Round "5.7"]
[White "Zpevak, Pavel"]
[Black "Zwardon, Vojtech"]
[Result "1/2-1/2"]
[ECO "A46"]
[WhiteElo "2347"]
[BlackElo "2476"]
[Annotator "ChessBase"]
[PlyCount "121"]
[EventDate "2019.10.19"]
[EventType "team-tourn"]
[EventCountry "SVK"]
[SourceTitle "playchess.com"]
[Source "ChessBase"]
[SourceQuality "1"]
[WhiteTeam "Dubnica"]
[BlackTeam "Zilina"]
[TimeControl "40/5400+30:1800+30"]

1. d4 {[%emt 0:00:00]} Nf6 {[%emt 0:02:33]} 2. Nf3 {[%emt 0:00:01]} e6 {[%emt 0:00:02]} 3. g3 {[%emt 0:01:00]} b5 {[%emt 0:00:01]} 4. Bg2 {[%emt 0:00:10]} Bb7 {[%emt 0:00:02]} 5. O-O {[%emt 0:00:52]} c5 {[%emt 0:00:01]} 6. c3 {[%emt 0:00:33]} cxd4 {[%emt 0:00:06]} 7. cxd4 {[%emt 0:00:16]} Be7 {[%emt 0:00:06]} 8. Bg5 {[%emt 0:00:58]} O-O {[%emt 0:05:08]} 9. Qd3 {[%emt 0:04:02]} Be4 {[%emt 0:00:47]} 10. Qd1 {[%emt 0:03:11]} d6 {[%emt 0:06:03]} 11. Nc3 {[%emt 0:07:12]} Bc6 {[%emt 0:01:26]} 12. a3 {[%emt 0:04:23]} Nbd7 {[%emt 0:04:59]} 13. Qd3 {[%emt 0:06:32]} Qb6 {[%emt 0:04:06]} 14. d5 {[%emt 0:05:45]} Bxd5 {[%emt 0:07:05]} 15. Nxd5 {[%emt 0:01:08]} exd5 {[%emt 0:00:15]} 16. Nd4 {[%emt 0:04:05]} Ne5 {[%emt 0:00:22]} 17. Qd1 {[%emt 0:00:37]} Rac8 {[%emt 0:06:05]} 18. Nf5 {[%emt 0:03:46]} Bd8 {[%emt 0:02:50]} 19. Rc1 {[%emt 0:19:58]} Rxc1 {[%emt 0:01:22]} 20. Qxc1 {[%emt 0:00:27]} g6 {[%emt 0:00:39]} 21. Be3 {[%emt 0:17:13]} Qa6 {[%emt 0:03:29]} 22. Nd4 {[%emt 0:05:58]} Bb6 {[%emt 0:01:17]} 23. Qd1 {[%emt 0:00:27]} Nc4 {[%emt 0:01:14]} 24. Bc1 {[%emt 0:00:28]} Rc8 {[%emt 0:03:19]} 25. Qd3 {[%emt 0:03:45]} Bc5 {[%emt 0:07:25]} 26. Nc2 {[%emt 0:05:42]} Ne5 {[%emt 0:00:20]} 27. Qd1 {[%emt 0:01:01]} Qa4 {[%emt 0:00:07]} 28. Ne3 {[%emt 0:02:11]} Qxd1 {[%emt 0:03:10]} 29. Rxd1 {[%emt 0:00:08]} d4 {[%emt 0:00:06]} 30. Nf1 {[%emt 0:02:21]} Bb6 {[%emt 0:00:24]} 31. Bg5 {[%emt 0:00:32]} Kg7 {[%emt 0:00:35]} 32. Rc1 {[%emt 0:00:23]} Rc4 {[%emt 0:01:02]} 33. Bd2 {[%emt 0:00:23]} d5 {[%emt 0:01:53]} 34. b3 {[%emt 0:00:12]} Rxc1 {[%emt 0:00:28]} 35. Bxc1 {[%emt 0:00:05]} Ne4 {[%emt 0:00:43]} 36. Nd2 {[%emt 0:00:23]} f5 {[%emt 0:02:20]} 37. h3 {[%emt 0:00:44]} a5 {[%emt 0:06:44]} 38. Kf1 {[%emt 0:00:18]} a4 {[%emt 0:00:31]} 39. b4 {[%emt 0:00:42]} Nc4 {[%emt 0:01:08]} 40. Nf3 {[%emt 0:00:54]} Nc3 {[%emt 0:01:56]} 41. Ne1 {[%emt 0:30:42]} Na2 {[%emt 0:30:25]} 42. Nd3 {[%emt 0:00:31]} Nxc1 {[%emt 0:00:56]} 43. Nxc1 {[%emt 0:00:06]} Nxa3 {[%emt 0:00:08]} 44. Bxd5 {[%emt 0:00:16]} Nc2 {[%emt 0:00:12]} 45. Na2 {[%emt 0:00:00]} Bc7 {[%emt 0:00:00]} 46. Bc6 {[%emt 0:00:00]} Bd6 {[%emt 0:00:00]} 47. Bxb5 {[%emt 0:00:00]} a3 {[%emt 0:00:00]} 48. Bc4 {[%emt 0:00:00]} Nxb4 {[%emt 0:00:00]} 49. Nc1 {[%emt 0:00:00]} f4 {[%emt 0:00:00]} 50. gxf4 {[%emt 0:00:00]} Bxf4 {[%emt 0:00:00]} 51. Nd3 {[%emt 0:00:00]} Bd2 {[%emt 0:00:00]} 52. Nxb4 {[%emt 0:00:00]} Bxb4 {[%emt 0:00:00]} 53. Kg2 {[%emt 0:00:00]} Kf6 {[%emt 0:00:00]} 54. f4 {[%emt 0:00:00]} Ke7 {[%emt 0:00:00]} 55. Kf3 {[%emt 0:00:00]} Kd6 {[%emt 0:00:00]} 56. Ke4 {[%emt 0:00:00]} Kc5 {[%emt 0:00:00]} 57. Bg8 {[%emt 0:00:00]} Bd2 {[%emt 0:00:00]} 58. Bf7 {[%emt 0:00:00]} Be3 {[%emt 0:00:00]} 59. Bg8 {[%emt 0:00:06]} h6 {[%emt 0:00:00]} 60. Bf7 {[%emt 0:00:38]} h5 {[%emt 0:00:00]} 61. Kd3 {[%emt 0:05:23]} 1/2-1/2

[Event "SVK Extraliga 2019-20"]
[Site "Slovakia"]
[Date "2020.01.18"]
[Round "5.7"]
[White "Briestensky, Rastislav"]
[Black "Vass, Frantisek"]
[Result "0-1"]
[ECO "C07"]
[WhiteElo "2344"]
[BlackElo "2306"]
[Annotator "ChessBase"]
[PlyCount "104"]
[EventDate "2019.10.19"]
[EventType "team-tourn"]
[EventCountry "SVK"]
[SourceTitle "playchess.com"]
[Source "ChessBase"]
[SourceQuality "1"]
[WhiteTeam "Slovan"]
[BlackTeam "Podhajska"]
[TimeControl "40/5400+30:1800+30"]

1. e4 {[%emt 0:00:00]} e6 {[%emt 0:00:53]} 2. d4 {[%emt 0:02:04]} d5 {[%emt 0:00:09]} 3. Nd2 {[%emt 0:00:07]} c5 {[%emt 0:01:33]} 4. dxc5 {[%emt 0:04:12]} Bxc5 {[%emt 0:01:21]} 5. Nb3 {[%emt 0:02:53]} Be7 {[%emt 0:00:36]} 6. exd5 {[%emt 0:04:49]} exd5 {[%emt 0:01:42]} 7. Nf3 {[%emt 0:00:15]} Nf6 {[%emt 0:00:53]} 8. Be2 {[%emt 0:03:53]} O-O {[%emt 0:00:37]} 9. O-O {[%emt 0:00:37]} Qc7 {[%emt 0:01:37]} 10. Bg5 {[%emt 0:04:54]} Rd8 {[%emt 0:01:25]} 11. Bh4 {[%emt 0:09:50]} Nc6 {[%emt 0:03:57]} 12. c3 {[%emt 0:02:48]} a6 {[%emt 0:02:45]} 13. a4 {[%emt 0:02:36]} Bf5 {[%emt 0:04:57]} 14. Bg3 {[%emt 0:05:05]} Bd6 {[%emt 0:03:22]} 15. Bxd6 {[%emt 0:00:26]} Qxd6 {[%emt 0:01:24]} 16. Nfd4 {[%emt 0:03:45]} Be4 {[%emt 0:04:00]} 17. Qc1 {[%emt 0:10:23]} Ne5 {[%emt 0:01:57]} 18. f3 {[%emt 0:00:23]} Bg6 {[%emt 0:03:33]} 19. Rd1 {[%emt 0:07:01]} Nc4 {[%emt 0:01:51]} 20. Nd2 {[%emt 0:04:15]} Ne3 {[%emt 0:20:34]} 21. Re1 {[%emt 0:00:19]} Re8 {[%emt 0:02:42]} 22. Nf1 {[%emt 0:08:44]} Nc4 {[%emt 0:02:42]} 23. b3 {[%emt 0:00:26]} Ne5 {[%emt 0:03:20]} 24. Qd2 {[%emt 0:02:26]} Rac8 {[%emt 0:01:17]} 25. Rec1 {[%emt 0:00:59]} Qc5 {[%emt 0:11:24]} 26. Ne3 {[%emt 0:05:15]} Nc6 {[%emt 0:01:21]} 27. Kf2 {[%emt 0:01:08]} Rc7 {[%emt 0:08:02]} 28. g3 {[%emt 0:04:34]} Rce7 {[%emt 0:00:53]} 29. b4 {[%emt 0:02:23]} Qa7 {[%emt 0:02:39]} 30. Nxc6 {[%emt 0:00:31]} bxc6 {[%emt 0:00:36]} 31. Qd4 {[%emt 0:00:07]} Qxd4 {[%emt 0:03:11]} 32. cxd4 {[%emt 0:00:02]} Rxe3 {[%emt 0:00:06]} 33. Bxa6 {[%emt 0:00:09]} Rb3 {[%emt 0:00:48]} 34. Rxc6 {[%emt 0:00:54]} Rxb4 {[%emt 0:00:56]} 35. a5 {[%emt 0:00:07]} Rb2+ {[%emt 0:03:05]} 36. Kg1 {[%emt 0:00:05]} Bf5 {[%emt 0:00:38]} 37. Rc7 {[%emt 0:01:24]} Reb8 {[%emt 0:02:25]} 38. Bf1 {[%emt 0:01:31]} R2b7 {[%emt 0:02:09]} 39. Rc5 {[%emt 0:02:05]} Kf8 {[%emt 0:01:07]} 40. a6 {[%emt 0:00:07]} Ra7 {[%emt 0:00:05]} 41. Rac1 {[%emt 0:33:08]} Ke8 {[%emt 0:07:02]} 42. Rc7 {[%emt 0:00:00]} Rba8 {[%emt 0:02:23]} 43. g4 {[%emt 0:00:00]} Bd7 {[%emt 0:01:14]} 44. g5 {[%emt 0:00:00]} Ng8 {[%emt 0:03:45]} 45. R7c5 {[%emt 0:00:00]} Ne7 {[%emt 0:00:26]} 46. Re1 {[%emt 0:00:00]} Kd8 {[%emt 0:00:30]} 47. f4 {[%emt 0:00:00]} Bc8 {[%emt 0:00:25]} 48. f5 {[%emt 0:00:00]} Bxf5 {[%emt 0:00:48]} 49. Re5 {[%emt 0:00:00]} Bc8 {[%emt 0:01:01]} 50. Bd3 {[%emt 0:00:00]} Bxa6 {[%emt 0:00:24]} 51. Bxh7 {[%emt 0:00:00]} g6 {[%emt 0:02:24]} 52. h4 {[%emt 0:00:00]} Bc4 {[%emt 0:01:25]} 0-1

[Event "SVK Extraliga 2019-20"]
[Site "Slovakia"]
[Date "2020.01.18"]
[Round "5.7"]
[White "Danada, Tomas"]
[Black "Tropp, Lukas"]
[Result "1-0"]
[ECO "A05"]
[WhiteElo "2277"]
[BlackElo "2132"]
[Annotator "ChessBase"]
[PlyCount "89"]
[EventDate "2019.10.19"]
[EventType "team-tourn"]
[EventCountry "SVK"]
[SourceTitle "playchess.com"]
[Source "ChessBase"]
[SourceQuality "1"]
[WhiteTeam "Prakovce"]
[BlackTeam "Košice"]
[TimeControl "40/5400+30:1800+30"]

1. Nf3 {[%emt 0:03:25]} Nf6 {[%emt 0:00:25]} 2. e3 {[%emt 0:00:30]} g6 {[%emt 0:01:46]} 3. b4 {[%emt 0:00:31]} Bg7 {[%emt 0:00:50]} 4. Bb2 {[%emt 0:00:02]} a5 {[%emt 0:03:25]} 5. b5 {[%emt 0:04:54]} d6 {[%emt 0:08:51]} 6. Be2 {[%emt 0:02:53]} e5 {[%emt 0:07:07]} 7. d4 {[%emt 0:03:10]} e4 {[%emt 0:04:36]} 8. Nfd2 {[%emt 0:00:13]} O-O {[%emt 0:00:35]} 9. c4 {[%emt 0:00:21]} Re8 {[%emt 0:01:52]} 10. g4 {[%emt 0:03:29]} c5 {[%emt 0:11:53]} 11. dxc5 {[%emt 0:12:46]} Nxg4 {[%emt 0:12:38]} 12. Bxg7 {[%emt 0:00:20]} Nxf2 {[%emt 0:00:04]} 13. Kxf2 {[%emt 0:01:47]} Qh4+ {[%emt 0:00:30]} 14. Kg1 {[%emt 0:00:50]} Qg5+ {[%emt 0:01:02]} 15. Kf2 {[%emt 0:00:31]} Kxg7 {[%emt 0:04:11]} 16. Na3 {[%emt 0:07:09]} Qh4+ {[%emt 0:09:24]} 17. Kg1 {[%emt 0:00:11]} Re5 {[%emt 0:18:58]} 18. Nf1 {[%emt 0:00:49]} Rg5+ {[%emt 0:00:29]} 19. Ng3 {[%emt 0:00:06]} Rxg3+ {[%emt 0:03:31]} 20. hxg3 {[%emt 0:00:05]} Qxg3+ {[%emt 0:00:03]} 21. Kf1 {[%emt 0:00:06]} Bh3+ {[%emt 0:00:12]} 22. Rxh3 {[%emt 0:00:08]} Qxh3+ {[%emt 0:00:03]} 23. Ke1 {[%emt 0:01:33]} Qxe3 {[%emt 0:00:45]} 24. Nc2 {[%emt 0:00:31]} Qg1+ {[%emt 0:01:36]} 25. Kd2 {[%emt 0:00:23]} Qxc5 {[%emt 0:00:23]} 26. Kc3 {[%emt 0:00:36]} Nd7 {[%emt 0:05:14]} 27. Qd4+ {[%emt 0:01:47]} Qxd4+ {[%emt 0:00:27]} 28. Kxd4 {[%emt 0:00:32]} f5 {[%emt 0:00:03]} 29. Kd5 {[%emt 0:01:12]} Nf6+ {[%emt 0:00:03]} 30. Kxd6 {[%emt 0:00:16]} Rd8+ {[%emt 0:00:03]} 31. Kc7 {[%emt 0:00:07]} Rd7+ {[%emt 0:00:11]} 32. Kb6 {[%emt 0:01:22]} Rd2 {[%emt 0:00:03]} 33. Bd1 {[%emt 0:00:22]} f4 {[%emt 0:00:34]} 34. Kxb7 {[%emt 0:01:38]} e3 {[%emt 0:01:14]} 35. Ne1 {[%emt 0:11:41]} e2 {[%emt 0:01:40]} 36. Bxe2 {[%emt 0:04:57]} Rxe2 {[%emt 0:00:03]} 37. c5 {[%emt 0:00:17]} g5 {[%emt 0:01:49]} 38. c6 {[%emt 0:01:53]} Re7+ {[%emt 0:01:33]} 39. c7 {[%emt 0:00:56]} Ne8 {[%emt 0:00:26]} 40. b6 {[%emt 0:00:12]} g4 {[%emt 0:00:27]} 41. Kc6 {[%emt 0:31:42]} Re6+ {[%emt 0:30:21]} 42. Kd5 {[%emt 0:01:41]} Nxc7+ {[%emt 0:00:00]} 43. bxc7 {[%emt 0:00:00]} Re8 {[%emt 0:00:00]} 44. Rc1 {[%emt 0:00:00]} f3 {[%emt 0:00:00]} 45. Nxf3 {[%emt 0:00:00]} 1-0